bitfinex-derivatives/quotes_SOLF0:USTF0_20251229
["timestamp","ask_amount","ask_price","bid_price","bid_amount"]
[1766982133886,96.00907657,129.03,128.92,14.48]
[1766982134088,0.05020657,128.99,128.96,0.05917567]
[1766982135696,0.05020657,128.99,128.96,35.71917567]
[1766982137194,91.62,129.03,128.96,35.71917567]
[1766982146802,91.62,129.09,129.0,35.66]
[1766982147007,91.62,129.09,128.98,4.38907657]
[1766982147008,96.00907657,129.09,129.03,0.01694604]
[1766982147305,4.38907657,129.07,128.98,35.66]
[1766982147701,91.62,129.06,128.98,35.66]
[1766982148307,0.0589269,129.03,129.01,0.05660621]
[1766982155199,0.0589269,129.03,128.96,35.66]
[1766982156311,0.0589269,129.03,128.98,0.0554042]
[1766982159110,0.0589269,129.03,128.73,23.32]
[1766982159111,74.47,128.99,128.73,23.32]
[1766982159313,4.38907657,128.87,128.77,35.66]
[1766982159612,4.38907657,128.94,128.78,40.04907657]
[1766982159613,96.00907657,128.91,128.78,40.04907657]
[1766982159813,96.00907657,128.91,128.79,35.66]
[1766982160112,96.00907657,128.91,128.78,27.70907657]
[1766982160113,96.00907657,128.91,128.84,0.05178205]
[1766982160307,102.99747657,128.91,128.84,0.05178205]
[1766982160515,11.37747657,128.91,128.84,0.05178205]
[1766982161111,0.05140511,128.89,128.84,0.05178205]
[1766982162509,2.8655805,128.89,128.84,0.05178205]
[1766982164814,2.81417539,128.9,128.84,35.71178205]
[1766982165907,0.05338412,128.88,128.84,35.71178205]
[1766982166606,2.81417539,128.9,128.84,35.71178205]
[1766982168208,2.81417539,128.92,128.84,35.71178205]
[1766982168405,2.81417539,128.92,128.84,35.66]
[1766982168610,2.81417539,128.92,128.87,0.05400408]
[1766982168918,2.81417539,128.92,128.87,36.93400408]
[1766982171322,2.81417539,128.92,128.87,0.05400408]
[1766982171915,2.81417539,128.9,128.87,0.05400408]
[1766982172113,2.81417539,128.9,128.87,0.05911742]
[1766982178320,2.81417539,128.91,128.87,91.77911742]
[1766982178623,2.81417539,128.91,128.88,91.72]
[1766982179022,6.988,128.92,128.88,91.72]
[1766982179220,2.81417539,128.91,128.88,91.72]
[1766982179424,2.81417539,128.91,128.88,91.76901578]
[1766982179625,51.15,128.99,128.88,91.76901578]
[1766982179626,2.81417539,128.94,128.88,91.76901578]
[1766982179824,2.81417539,128.94,128.88,91.72]
[1766982180318,6.03437496,128.98,128.88,91.72]
[1766982180522,2.81417539,128.94,128.88,91.72]
[1766982180728,6.9874,128.93,128.88,91.72]
[1766982181031,0.04932019,128.92,128.88,79.2088]
[1766982181323,0.04932019,128.92,128.88,67.1118]
[1766982181826,0.04932019,128.92,128.85,91.72]
[1766982181827,2.81417539,128.9,128.85,91.72]
[1766982182029,2.81417539,128.9,128.86,0.05416766]
[1766982182030,0.05042359,128.89,128.86,0.05416766]
[1766982182426,0.05042359,128.89,128.85,91.72]
[1766982183528,2.86459898,128.89,128.85,91.72]
[1766982184614,7.03982359,128.89,128.86,0.05894544]
[1766982184932,7.03982359,128.89,128.85,91.72]
[1766982185527,7.03982359,128.89,128.81,18.77]
[1766982185528,2.81417539,128.86,128.81,18.77]
[1766982185725,2.81417539,128.84,128.77,36.48]
[1766982185924,0.05673109,128.82,128.79,0.05890596]
[1766982186124,23.3590117,128.82,128.79,0.05890596]
[1766982186714,0.05673109,128.82,128.79,0.05890596]
[1766982187322,0.05673109,128.82,128.77,91.72]
[1766982187720,2.87090648,128.82,128.77,91.72]
[1766982188127,0.05673109,128.82,128.77,128.2]
[1766982188314,26.63694885,128.82,128.75,36.48]
[1766982188625,2.81417539,128.82,128.75,36.48]
[1766982189417,0.05002645,128.8,128.77,0.05556016]
[1766982193023,2.86420184,128.8,128.74,2.68]
[1766982193325,2.86420184,128.8,128.67,36.48]
[1766982193326,2.81417539,128.76,128.67,36.48]
[1766982193714,6.02247083,128.82,128.67,36.48]
[1766982193913,2.81417539,128.77,128.67,39.29417539]
[1766982194119,2.81417539,128.78,128.71,0.05426501]
[1766982194319,2.81417539,128.76,128.67,36.48]
[1766982195124,0.05287945,128.73,128.7,0.04916801]
[1766982196115,7.05107945,128.73,128.7,0.04916801]
[1766982196317,7.05107945,128.73,128.67,36.48]
[1766982197326,7.05107945,128.73,128.69,0.05756445]
[1766982199426,0.05287945,128.73,128.69,0.05756445]
[1766982200024,2.86705484,128.73,128.69,0.05756445]
[1766982200728,9.86525484,128.73,128.69,0.05756445]
[1766982201833,9.86525484,128.73,128.66,35.06]
[1766982201834,0.44243555,128.69,128.66,35.06]
[1766982202134,9.81237539,128.73,128.66,35.06]
[1766982202526,6.9982,128.73,128.66,35.06]
[1766982202730,9.81397539,128.7,128.63,35.06]
[1766982203038,0.05433376,128.68,128.65,0.05839798]
[1766982204529,0.05433376,128.68,128.57,91.82]
[1766982204737,6.0059931,128.68,128.58,35.06]
[1766982204938,6.0059931,128.67,128.58,35.06]
[1766982205132,51.15,128.72,128.58,35.06]
[1766982205333,2.81417539,128.69,128.58,37.87417539]
[1766982205630,0.00095593,128.65,128.62,35.11614398]
[1766982205833,6.9997,128.7,128.62,35.06]
[1766982206436,9.81387539,128.7,128.62,35.06]
[1766982206636,0.05523247,128.67,128.65,0.05287303]
[1766982210934,98.7987,128.72,128.65,0.05287303]
[1766982211136,101.61287539,128.72,128.65,0.05287303]
[1766982211457,1.50480363,128.73,128.65,35.11287303]
[1766982211737,1.50480363,128.73,128.65,35.06]
[1766982211934,1.50480363,128.73,128.68,0.05400824]
[1766982212330,1.50480363,128.73,128.68,35.11400824]
[1766982212729,6.9964,128.76,128.68,37.92818363]
[1766982212938,9.81057539,128.76,128.68,35.06]
[1766982213135,0.04914387,128.73,128.71,0.05863011]
[1766982220843,6.9955,128.78,128.71,35.11863011]
[1766982221038,6.9955,128.78,128.71,35.06]
[1766982221939,0.05315514,128.76,128.73,0.05120845]
[1766982228149,6.13223958,128.76,128.73,0.05120845]
[1766982228354,0.05315514,128.76,128.73,0.05120845]
[1766982229245,6.13222829,128.76,128.73,0.05120845]
[1766982233154,0.05315514,128.76,128.73,0.05120845]
[1766982237357,6.15400705,128.76,128.73,0.00120845]
[1766982237557,6.10085191,128.75,128.73,0.00120845]
[1766982237751,0.05315514,128.76,128.73,0.00120845]
[1766982238558,6.997,128.75,128.73,0.00120845]
[1766982239154,0.49879155,128.73,128.7,34.49]
[1766982239450,6.9964,128.76,128.7,34.49]
[1766982240157,0.05840531,128.74,128.72,0.04956606]
[1766982242252,6.9964,128.76,128.72,0.04956606]
[1766982243256,0.05467836,128.75,128.72,0.04956606]
[1766982245855,0.00467836,128.75,128.72,34.53956606]
[1766982246754,6.994,128.81,128.72,34.53956606]
[1766982246950,6.994,128.81,128.72,34.49]
[1766982247653,0.05265648,128.78,128.75,34.54845529]
[1766982249162,0.00265648,128.78,128.75,34.54845529]
[1766982249962,0.00265648,128.78,128.75,0.05845529]
[1766982252362,6.99795648,128.78,128.75,0.05845529]
[1766982253053,11.40307486,128.78,128.72,34.49]
[1766982254061,11.40307486,128.78,128.74,0.05413749]
[1766982254357,4.40777486,128.78,128.74,0.05413749]
[1766982254564,0.00265648,128.78,128.74,0.05413749]
[1766982255867,11.40307486,128.78,128.74,0.05413749]
[1766982259066,6.9959,128.77,128.74,0.05413749]
[1766982259762,6.9959,128.77,128.68,7.0006]
[1766982259968,4.40511838,128.82,128.67,35.85]
[1766982259969,10.49439165,128.76,128.67,35.85]
[1766982260161,4.40511838,128.76,128.67,35.85]
[1766982260561,10.49537269,128.76,128.67,35.85]
[1766982260763,6.09025431,128.76,128.7,35.89971689]
[1766982260972,0.00324714,128.73,128.7,35.89971689]
[1766982262057,0.00324714,128.73,128.68,35.85]
[1766982263268,0.00324714,128.73,128.69,35.90751443]
[1766982271684,0.00324714,128.73,128.69,0.05751443]
[1766982272287,0.00324714,128.73,128.69,35.90751443]
[1766982273689,0.00324714,128.73,128.69,0.05751443]
[1766982273885,6.093512,128.73,128.69,0.05751443]
[1766982274090,6.13582707,128.72,128.69,0.05751443]
[1766982274393,0.00324714,128.73,128.69,0.05751443]
[1766982274582,7.00124714,128.73,128.69,0.05751443]
[1766982274885,6.13411482,128.72,128.69,0.05751443]
[1766982276189,0.00324714,128.73,128.69,0.05751443]
[1766982277192,6.13307019,128.73,128.69,0.05751443]
[1766982279099,0.00324714,128.73,128.69,0.05751443]
[1766982281495,0.00324714,128.73,128.69,35.90751443]
[1766982281996,0.00324714,128.73,128.69,0.05751443]
[1766982283999,0.00324714,128.73,128.69,35.90751443]
[1766982284394,6.9963,128.77,128.69,35.90751443]
[1766982284593,6.9963,128.77,128.69,35.85]
[1766982285599,0.05476202,128.74,128.72,0.05893119]
[1766982295008,0.44106881,128.72,128.7,36.47]
[1766982295205,0.05476202,128.74,128.7,36.47]
[1766982296100,0.05476202,128.74,128.71,0.05125507]
[1766982300915,2.82041862,128.81,128.72,33.61]
[1766982302011,0.05393871,128.78,128.75,0.05836676]
[1766982303214,7.04933871,128.78,128.75,0.05836676]
[1766982305407,0.05393871,128.78,128.75,0.05836676]
[1766982305710,0.05393871,128.78,128.75,33.66836676]
[1766982306111,0.05393871,128.78,128.75,0.05836676]
[1766982307914,0.00393871,128.78,128.75,33.66836676]
[1766982308319,6.9927,128.83,128.75,33.66836676]
[1766982308513,6.9927,128.83,128.75,33.61]
[1766982309313,6.9927,128.83,128.78,33.66896313]
[1766982310323,0.05248309,128.82,128.78,33.66896313]
[1766982312620,0.00248309,128.82,128.78,33.66896313]
[1766982333243,6.9915,128.85,128.78,33.66896313]
[1766982333244,6.5,128.94,128.78,36.48938175]
[1766982333447,9.32041862,128.9,128.81,34.06]
[1766982333645,6.5,128.9,128.81,34.06]
[1766982333849,9.32041862,128.9,128.81,34.06]
[1766982334252,0.05149218,128.87,128.84,0.05411054]
[1766982337545,6.56149218,128.87,128.84,0.05411054]
[1766982337754,6.56149218,128.87,128.81,34.06]
[1766982338050,0.05149218,128.87,128.81,34.06]
[1766982338739,0.05149218,128.87,128.83,34.11457455]
[1766982342353,0.05149218,128.87,128.83,0.05457455]
[1766982342354,16.4023108,128.87,128.83,0.05457455]
[1766982343454,6.54,128.86,128.83,0.05457455]
[1766982343655,13.531,128.86,128.78,34.06]
[1766982344561,0.05584256,128.83,128.81,0.04925068]
[1766982367784,0.45074932,128.81,128.79,34.06]
[1766982367993,0.05584256,128.83,128.79,34.06]
[1766982368891,0.05584256,128.83,128.8,0.05496961]
[1766982370983,6.71584256,128.83,128.77,35.86]
[1766982371188,6.66,128.83,128.77,35.86]
[1766982371982,6.66,128.83,128.79,0.05394176]
[1766982372187,0.05519126,128.81,128.79,0.05394176]
[1766982377901,0.05519126,128.81,128.75,34.64]
[1766982378101,9.9232,128.82,128.75,34.64]
[1766982378899,0.05589125,128.8,128.77,34.69593796]
[1766982383504,0.05589125,128.8,128.77,0.05593796]
[1766982383704,0.05589125,128.8,128.71,34.64]
[1766982383705,3.11,128.79,128.71,34.64]
[1766982384402,10.0858,128.77,128.71,34.64]
[1766982384906,0.05362997,128.75,128.73,0.05134891]
[1766982386100,3.19362997,128.75,128.68,34.64]
[1766982386302,3.14,128.75,128.68,34.64]
[1766982386705,9.20863265,128.77,128.68,34.64]
[1766982387001,105.7472,128.82,128.68,39.0400784]
[1766982387002,3.13,128.79,128.68,39.0400784]
[1766982387206,3.13,128.79,128.73,34.64]
[1766982387608,6.9951,128.79,128.73,34.64]
[1766982388310,0.05365748,128.77,128.75,0.05722989]
[1766982393818,0.00365748,128.77,128.75,0.05722989]
[1766982410029,12.98187883,128.81,128.75,35.50722989]
[1766982410231,6.09728339,128.8,128.75,35.50722989]
[1766982411023,0.0571848,128.79,128.75,35.50722989]
[1766982412024,7.07,128.78,128.75,0.05722989]
[1766982412831,0.0571848,128.79,128.75,0.05722989]
[1766982414224,6.9932,128.82,128.75,37.70540872]
[1766982414430,6.10296514,128.81,128.75,37.64817883]
[1766982415132,6.10296514,128.81,128.75,34.83]
[1766982415335,0.00378911,128.79,128.77,34.8823427]
[1766982416029,7.02,128.83,128.77,34.8823427]
[1766982416330,6.10636428,128.82,128.77,34.8823427]
[1766982417122,0.05653404,128.81,128.77,34.8823427]
[1766982463482,6.18374405,128.81,128.77,34.8823427]
[1766982465785,5.85,128.85,128.78,2.81817883]
[1766982466085,5.85,128.85,128.79,34.31]
[1766982466786,0.05970081,128.83,128.81,0.05744284]
[1766982476994,12.8415,128.85,128.81,34.31]
[1766982476995,6.9915,128.85,128.81,34.31]
[1766982477200,98.7508,128.87,128.81,34.31]
[1766982477904,6.04474383,128.86,128.81,34.31]
[1766982478099,0.05435746,128.85,128.82,33.9026981]
[1766982483506,11.70435746,128.85,128.8,33.85]
[1766982483713,11.65,128.85,128.8,33.85]
[1766982484112,11.65,128.83,128.77,33.85]
[1766982484716,0.05661393,128.81,128.79,0.05516543]
[1766982485415,0.05661393,128.81,128.77,33.85]
[1766982486412,0.05661393,128.81,128.78,33.90165511]
[1766982487914,18.62041393,128.81,128.78,0.00165511]
[1766982488107,10.41641846,128.8,128.75,33.85]
[1766982488308,6.01690883,128.8,128.75,33.85]
[1766982489114,6.01690883,128.8,128.76,0.04980848]
[1766982489315,18.62041393,128.81,128.76,0.04980848]
[1766982490010,11.49,128.8,128.76,0.04980848]
[1766982490208,11.44,128.78,128.73,33.85]
[1766982490407,11.42,128.8,128.73,33.85]
[1766982491112,0.05765196,128.78,128.75,0.05778914]
[1766982492008,0.05765196,128.78,128.75,33.90778914]
[1766982492617,4.39950963,128.81,128.75,33.90778914]
[1766982492819,10.41021636,128.81,128.75,33.90778914]
[1766982493115,21.85021636,128.81,128.75,33.90778914]
[1766982493315,6.01070673,128.8,128.75,33.90778914]
[1766982493617,0.05366556,128.79,128.75,33.90778914]
[1766982508225,0.00366556,128.79,128.75,33.90778914]
[1766982516837,22.60250963,128.83,128.75,33.90778914]
[1766982517030,22.60250963,128.83,128.75,33.85]
[1766982518035,0.04957242,128.8,128.78,0.05760956]
[1766982525642,15.60950963,128.83,128.78,35.76760956]
[1766982525940,6.01287723,128.82,128.78,35.76760956]
[1766982526143,15.60950963,128.83,128.78,35.76760956]
[1766982526339,11.21,128.83,128.78,35.76760956]
[1766982526643,0.00240295,128.82,128.78,35.76760956]
[1766982532749,2.81686117,128.8,128.78,0.02828632]
[1766982533847,2.81686117,128.8,128.76,35.45]
[1766982534952,0.05511849,128.79,128.77,0.05953455]
[1766982538054,13.79686117,128.82,128.77,0.05953455]
[1766982539248,0.05425257,128.81,128.77,0.05953455]
[1766982540245,10.94,128.8,128.77,0.05953455]
[1766982541257,0.05425257,128.81,128.77,35.50953455]
[1766982548648,0.00522789,128.82,128.77,35.50953455]
[1766982548950,6.9925,128.84,128.77,35.50953455]
[1766982549147,26.71936117,128.84,128.77,35.50953455]
[1766982549749,0.05252827,128.82,128.77,35.50953455]
[1766982553565,16.98252827,128.82,128.77,35.50953455]
[1766982554158,0.05252827,128.82,128.77,35.50953455]
[1766982564870,17.04252827,128.82,128.77,35.50953455]
[1766982566476,0.05252827,128.82,128.77,35.50953455]
[1766982567373,19.86938944,128.82,128.77,35.50953455]
[1766982567574,5.97885807,128.81,128.77,35.50953455]
[1766982568476,22.97885807,128.81,128.77,0.05953455]
[1766982568677,17.0,128.81,128.77,0.05953455]
[1766982569686,23.9937,128.81,128.77,0.05953455]
[1766982571786,2.86938944,128.82,128.77,33.79953455]
[1766982571989,8.85324626,128.82,128.77,33.79953455]
[1766982573187,6.03638509,128.82,128.77,33.79953455]
[1766982573383,8.85324626,128.82,128.77,33.79953455]
[1766982574089,6.03638509,128.82,128.77,33.79953455]
[1766982574387,8.85324626,128.82,128.77,33.79953455]
[1766982575590,2.81686117,128.84,128.77,33.79953455]
[1766982575887,2.81686117,128.84,128.77,33.74]
[1766982576587,91.78,128.85,128.79,0.05883842]
[1766982576886,0.00150488,128.82,128.8,33.74]
[1766982595798,0.00150488,128.82,128.79,0.05883842]
[1766982596803,0.00150488,128.82,128.79,34.55883842]
[1766982603802,5.9384475,128.85,128.79,34.55883842]
[1766982604005,6.9907,128.87,128.79,34.55883842]
[1766982604201,5.93594724,128.86,128.79,34.5]
[1766982604811,0.00499698,128.84,128.82,34.5]
[1766982605908,0.00499698,128.84,128.82,34.55089001]
[1766982609712,6.9891,128.9,128.82,34.55089001]
[1766982609912,5.9349197,128.89,128.82,34.5]
[1766982610714,0.05721597,128.87,128.84,34.55617851]
[1766982612818,5.9349197,128.89,128.84,34.55617851]
[1766982613114,25.31793602,128.91,128.84,34.55617851]
[1766982613318,5.92934199,128.9,128.84,34.55617851]
[1766982615114,1.69793602,128.91,128.84,34.55617851]
[1766982617723,8.68633602,128.91,128.84,34.55617851]
[1766982622924,29.81,128.9,128.84,34.55617851]
[1766982624132,8.68633602,128.91,128.84,34.55617851]
[1766982626620,38.57633602,128.91,128.84,34.55617851]
[1766982628328,40.22938355,128.9,128.84,34.55617851]
[1766982628527,34.31058325,128.9,128.84,34.55617851]
[1766982629628,6.9894,128.89,128.84,34.55617851]
[1766982634023,34.31058325,128.9,128.84,34.55617851]
[1766982635131,41.29938325,128.9,128.84,34.55617851]
[1766982635732,29.77,128.89,128.84,0.05617851]
[1766982636633,29.77,128.89,128.84,35.74617851]
[1766982639139,36.7594,128.89,128.84,0.05617851]
[1766982639338,33.86058325,128.88,128.84,0.05617851]
[1766982640135,29.41,128.86,128.8,35.69]
[1766982641127,0.05322798,128.84,128.82,0.05925595]
[1766982641535,0.00322798,128.84,128.82,35.74925595]
[1766982684959,9.80684684,128.86,128.82,35.74925595]
[1766982686971,6.991,128.86,128.82,35.74925595]
[1766982687466,29.56584684,128.87,128.82,35.74925595]
[1766982694080,29.56584684,128.87,128.82,0.05925595]
[1766982694285,2.81584684,128.85,128.82,0.05925595]
[1766982694481,34.17584684,128.85,128.82,0.05925595]
[1766982695483,34.17584684,128.83,128.78,33.74]
[1766982695679,2.81584684,128.81,128.78,33.74]
[1766982696590,2.86682616,128.81,128.78,33.79621421]
[1766982699191,0.05097932,128.81,128.78,33.79621421]
[1766982699390,2.86682616,128.81,128.78,33.79621421]
[1766982701201,0.00097932,128.81,128.78,33.79621421]
[1766982701993,2.81682616,128.81,128.78,33.79621421]
[1766982704596,2.81584684,128.82,128.78,33.79621421]
[1766982704799,2.81584684,128.83,128.78,33.79621421]
[1766982705498,5.90852574,128.84,128.78,33.79621421]
[1766982705690,0.02224048,128.82,128.78,33.79621421]
[1766982720000,32.47224048,128.82,128.78,33.79621421]
[1766982720196,0.02224048,128.82,128.78,33.79621421]
[1766982729316,0.00224048,128.82,128.78,33.79621421]
[1766982731321,32.45224048,128.82,128.78,0.05621421]
[1766982732223,32.45224048,128.82,128.78,31.27621421]
[1766982733916,0.00224048,128.82,128.78,31.27621421]
[1766982734422,0.00224048,128.82,128.78,26.32644856]
[1766982734816,5.93562961,128.82,128.78,26.32644856]
[1766982735521,5.93562961,128.82,128.79,0.05374344]
[1766982737519,5.93562961,128.82,128.78,21.380192]
[1766982737720,39.31562961,128.82,128.74,13.34]
[1766982737916,5.93338913,128.81,128.74,13.34]
[1766982738421,0.00485692,128.79,128.76,0.0578314]
[1766982739623,0.00485692,128.79,128.77,31.9]
[1766982803772,0.00485692,128.79,128.76,47.1978314]
[1766982804565,0.00485692,128.79,128.77,33.29]
[1766982814869,163.5743222,128.93,128.77,33.29]
[1766982814870,6.9924,128.84,128.77,33.29]
[1766982815773,0.04911982,128.82,128.79,33.3482481]
[1766982815975,2.81759408,128.88,128.8,2.81759408]
[1766982816177,1.87727434,128.89,128.81,33.29]
[1766982816869,1.87727434,128.89,128.85,33.29]
[1766982822576,6.9875,128.93,128.85,33.29]
[1766982822777,6.9875,128.93,128.88,33.34215515]
[1766982825491,39.9275,128.93,128.88,33.34215515]
[1766982835294,42.74509408,128.93,128.88,33.34215515]
[1766982835590,6.9863,128.95,128.88,33.34215515]
[1766982835795,9.80389408,128.95,128.88,33.34215515]
[1766982836588,6.9863,128.95,128.88,33.34215515]
[1766982838197,124.24,128.96,128.88,33.34215515]
[1766982838388,124.24,128.96,128.88,33.29]
[1766982839190,131.2255,128.96,128.88,33.29]
[1766982839392,0.05786075,128.93,128.88,33.29]
[1766982841501,0.05786075,128.93,128.88,40.2797]
[1766982849407,0.05786075,128.93,128.9,33.31]
[1766982849606,0.05786075,128.93,128.9,33.36286271]
[1766982851705,32.5,128.97,128.9,33.36286271]
[1766982852808,0.05377863,128.95,128.9,33.36286271]
[1766982854410,132.53389311,129.0,128.9,40.35136271]
[1766982854611,32.5,129.0,128.9,40.2985]
[1766982854915,36.89316008,128.99,128.9,40.2985]
[1766982855303,36.89316008,128.99,128.91,46.78]
[1766982855507,0.04898248,128.96,128.94,0.05817163]
[1766982856011,37.904,128.99,128.94,31.38817163]
[1766982856310,30.92,128.99,128.94,31.38817163]
[1766982857211,0.0594124,128.98,128.94,31.38817163]
[1766982859904,30.9794124,128.98,128.94,0.05817163]
[1766982864718,30.9794124,128.98,128.91,46.78]
[1766982865209,35.31316008,128.95,128.91,15.45]
[1766982865816,35.31316008,128.95,128.92,0.05646461]
[1766982865817,0.05800354,128.94,128.92,0.05646461]
[1766982875723,30.92,128.96,128.92,0.05646461]
[1766982876626,0.05396222,128.95,128.92,0.05646461]
[1766982877621,0.00396222,128.95,128.92,31.38646461]
[1766982880924,0.00396222,128.95,128.92,38.37396461]
[1766982893843,6.9834,129.0,128.94,32.32]
[1766982894249,40.7134,129.0,128.94,32.32]
[1766982894948,0.04954667,128.98,128.96,0.05549639]
[1766982896555,1.83694678,129.01,128.96,32.37549639]
[1766982896749,41.39060938,129.01,128.96,32.37549639]
[1766982897051,35.56694678,129.01,128.96,32.37549639]
[1766982897549,33.78234303,129.0,128.96,0.05549639]
[1766982914464,0.05234303,129.0,128.96,32.37549639]
[1766982918665,0.05234303,129.0,128.96,39.36089639]
[1766982918872,0.05234303,129.0,128.97,34.02]
[1766982919165,0.05234303,129.0,128.97,41.0048]
[1766982920259,0.05234303,129.0,128.98,34.02]
[1766982920562,33.98,129.04,128.98,34.02]
[1766982921257,43.76943501,129.06,128.98,34.02]
[1766982921464,36.78903501,129.04,128.98,34.02]
[1766982921659,0.0494091,129.03,129.01,0.05024373]
[1766982922264,34.0294091,129.03,129.01,0.00024373]
[1766982922566,34.0294091,129.03,128.98,34.02]
[1766982923155,36.78903501,129.0,128.93,12.82]
[1766982923361,1.34946487,129.05,128.95,0.05564506]
[1766982923362,36.8406844,128.98,128.95,0.05564506]
[1766982923666,36.84372933,128.98,128.95,0.05561958]
[1766982923866,36.78903501,128.96,128.93,12.82]
[1766982924365,1.34946487,129.05,128.97,34.02]
[1766982924670,36.78903501,129.05,128.97,34.02]
[1766982925467,0.05851461,129.02,129.0,0.0528132]
[1766982927770,34.03851461,129.02,128.95,34.02]
[1766982928364,36.78903501,129.01,128.95,34.02]
[1766982928764,0.05767832,128.99,128.97,0.05659047]
[1766982934372,36.78903501,129.03,128.97,34.07659047]
[1766982934764,33.98,129.05,128.97,34.07659047]
[1766982934969,33.98,129.05,128.99,34.02]
[1766982935374,0.05640398,129.03,129.01,0.05525019]
[1766982936666,34.03640398,129.03,128.97,34.02]
[1766982937278,36.84543899,129.03,128.97,34.02]
[1766982937681,36.84543899,129.03,128.99,0.05002286]
[1766982940280,34.03640398,129.03,128.99,0.05002286]
[1766982940489,36.84543899,129.03,128.99,0.05002286]
[1766982940675,0.05640398,129.03,128.99,0.05002286]
[1766982940875,0.05640398,129.03,128.99,34.07002286]
[1766982943590,0.05640398,129.03,128.99,41.05382286]
[1766982944383,2.80903501,129.06,128.99,41.05382286]
[1766982944780,60.54107405,129.07,128.99,41.05382286]
[1766982944983,36.78903501,129.07,128.99,41.0038]
[1766982945383,0.0569538,129.04,129.02,0.05754276]
[1766982948186,59.88103841,129.07,129.02,33.46754276]
[1766982949091,59.88103841,129.07,129.02,0.05754276]
[1766982949292,0.05396865,129.06,129.02,0.05754276]
[1766982951796,33.48396865,129.06,129.02,0.05754276]
[1766982952193,36.23903501,129.05,129.0,33.41]
[1766982952998,36.23903501,129.05,128.95,23.34]
[1766982952999,36.23903501,129.05,128.97,31.06]
[1766982953298,0.05482027,129.02,129.0,0.05909724]
[1766982953890,0.00482027,129.02,129.0,0.05909724]
[1766982962701,36.48177134,129.02,128.96,31.06]
[1766982962890,36.47695107,129.02,128.96,31.06]
[1766982963098,36.47695107,129.02,128.94,13.33]
[1766982963099,32.09,129.01,128.94,44.39]
[1766982963401,36.47695107,129.0,128.94,44.39]
[1766982963595,0.0541032,128.98,128.96,0.05077179]
[1766982969707,0.0041032,128.98,128.96,31.11077179]
[1766982969908,0.0041032,128.98,128.96,56.01077179]
[1766982970113,0.0041032,128.98,128.97,31.06]
[1766982979207,33.11,129.06,128.99,6.9835]
[1766982979411,33.11,129.06,128.99,39.9735]
[1766982980310,0.05964136,129.04,129.01,0.04957743]
[1766982980899,0.05964136,129.04,129.01,33.03957743]
[1766982982311,0.05964136,129.04,129.01,0.04957743]
[1766982985510,0.05964136,129.04,128.99,32.99]
[1766982985716,33.16964136,129.04,128.97,32.99]
[1766982985916,33.11,129.04,128.97,32.99]
[1766982986611,0.05900407,129.02,128.99,0.05150039]
[1766982988320,0.05900407,129.02,128.99,33.04150039]
[1766982991518,0.05900407,129.02,128.99,0.05150039]
[1766982997232,0.05900407,129.02,128.99,33.04150039]
[1766982997625,37.49695107,129.06,128.99,40.02520039]
[1766982998027,44.47715107,129.06,128.99,40.02520039]
[1766982998330,33.11,129.05,128.99,40.02520039]
[1766982998632,0.05770286,129.03,128.99,40.02520039]
[1766983005229,0.05770286,129.03,128.99,33.04150039]
[1766983005531,0.05770286,129.03,129.0,6.9831]
[1766983008539,0.05770286,129.03,129.0,38.3031]
[1766983010238,0.05770286,129.03,129.0,31.32]
[1766983011835,0.05770286,129.03,128.99,16.98150039]
[1766983014343,32.59770286,129.03,128.99,16.98150039]
[1766983015737,62.64446666,129.07,128.99,48.30150039]
[1766983016040,38.23608818,129.06,129.0,31.32]
[1766983016227,32.54,129.06,129.0,31.32]
[1766983016842,0.05894644,129.04,129.02,0.05919192]
[1766983020437,124.45,129.08,129.02,33.84919192]
[1766983020636,5.70917909,129.07,129.02,33.84919192]
[1766983020841,91.62,129.08,129.02,0.05919192]
[1766983021042,32.83,129.09,129.02,0.05919192]
[1766983021238,0.62111774,129.11,129.02,23.39919192]
[1766983021537,175.0,129.34,129.11,23.34]
[1766983021538,21.37663595,129.22,129.11,23.34]
[1766983021727,21.37663595,129.22,129.17,1.34784461]
[1766983021932,0.05834742,129.21,129.18,0.05352821]
[1766983022342,4.44529849,129.21,129.17,0.24617242]
[1766983022536,2.80132955,129.19,129.14,33.79]
[1766983022841,91.62,129.21,129.12,36.59132955]
[1766983023036,2.80132955,129.19,129.12,33.79]
[1766983023537,0.05630472,129.17,129.14,0.05516233]